bitfinex/quotes_SOLUSD_20220208
["timestamp","ask_amount","ask_price","bid_price","bid_amount"]
[1644315300323,6.52275549,113.28,113.17,0.024]
[1644315300521,10.62,113.27,113.17,0.024]
[1644315300720,12.72775549,113.27,113.17,0.024]
[1644315300919,2.10775549,113.26,113.17,0.024]
[1644315301121,10.62,113.25,113.16,23.3475]
[1644315302124,10.62,113.27,113.16,23.3475]
[1644315302326,10.62,113.27,113.17,0.024]
[1644315302928,12.72775549,113.27,113.17,0.024]
[1644315303126,10.62,113.27,113.17,0.024]
[1644315303527,10.62,113.29,113.17,0.024]
[1644315303729,10.62,113.29,113.17,4.439]
[1644315303930,12.72775549,113.29,113.18,0.024]
[1644315304530,17.14275549,113.29,113.17,0.024]
[1644315304730,17.14275549,113.29,113.19,0.024]
[1644315304935,17.14275549,113.29,113.17,0.024]
[1644315306131,10.62,113.29,113.18,2.01814368]
[1644315306331,10.62,113.29,113.19,0.024]
[1644315306933,10.62,113.32,113.2,2.01814368]
[1644315307138,10.62,113.32,113.2,8.04214368]
[1644315307333,10.62,113.32,113.2,21.28564368]
[1644315307532,6.52275549,113.34,113.2,19.5175]
[1644315307733,38.20946657,113.36,113.2,19.5175]
[1644315307734,10.62,113.35,113.21,2.01814368]
[1644315308036,2.10775549,113.34,113.2,6.274]
[1644315308232,10.62,113.33,113.2,0.024]
[1644315308633,2.10775549,113.32,113.2,0.024]
[1644315308833,12.72775549,113.32,113.2,0.024]
[1644315309148,10.62,113.32,113.2,0.024]
[1644315309534,10.62,113.32,113.21,2.01814368]
[1644315309735,10.62,113.32,113.21,9.94414368]
[1644315309937,10.62,113.34,113.21,16.19414368]
[1644315310135,10.62,113.34,113.21,20.60814368]
[1644315310336,10.62,113.36,113.22,2.01814368]
[1644315310537,147.91155109,113.39,113.25,13.238]
[1644315310735,10.62,113.39,113.25,23.986]
[1644315310939,10.62,113.39,113.26,6.43014368]
[1644315311136,11.85125109,113.43,113.26,23.05014368]
[1644315311337,11.85125109,113.43,113.27,25.34914368]
[1644315311542,1.23125109,113.44,113.28,4.41]
[1644315311740,11.85125109,113.45,113.29,70.5696]
[1644315311936,13.95900658,113.45,113.3,4.41]
[1644315312139,13.95900658,113.45,113.33,13.2293]
[1644315312538,11.85125109,113.45,113.33,13.2293]
[1644315312738,10.62,113.45,113.33,13.2293]
[1644315313543,10.62,113.45,113.33,13.88493316]
[1644315314140,11.85125109,113.47,113.33,21.90796809]
[1644315314540,1.23125109,113.48,113.37,13.2242]
[1644315314740,3.33900658,113.49,113.37,21.8022]
[1644315314941,2.10775549,113.49,113.37,21.8022]
[1644315315366,11.85125109,113.5,113.38,2.02303493]
[1644315315367,1.23125109,113.5,113.38,2.02303493]
[1644315315540,1.23125109,113.52,113.39,4.407]
[1644315315744,1.23125109,113.53,113.39,0.25]
[1644315316042,1.23125109,113.54,113.41,13.2192]
[1644315316241,5.63725109,113.54,113.41,24.1252]
[1644315316441,3.33900658,113.54,113.41,23.8752]
[1644315316648,11.85125109,113.53,113.41,23.8752]
[1644315316842,15.026,113.53,113.41,10.656]
[1644315317242,4.406,113.53,113.42,2.02303493]
[1644315317442,1.23125109,113.55,113.41,27.526]
[1644315317641,2.10775549,113.56,113.41,27.526]
[1644315317841,12.72775549,113.56,113.41,27.526]
[1644315318447,12.72775549,113.56,113.43,13.2167]
[1644315318642,10.62,113.56,113.43,19.2167]
[1644315318843,10.62,113.56,113.43,19.4667]
[1644315319042,10.62,113.56,113.43,19.2167]
[1644315319243,6.51275549,113.55,113.43,6.0]
[1644315319645,17.13275549,113.55,113.42,13.2178]
[1644315319843,12.72775549,113.55,113.42,13.2178]
[1644315320042,12.72775549,113.55,113.42,19.2178]
[1644315320245,12.36730992,113.56,113.43,2.01797294]
[1644315320443,10.62,113.57,113.43,2.01797294]
[1644315320644,10.62,113.57,113.43,16.49397294]
[1644315321052,10.62,113.57,113.43,14.476]
[1644315321646,15.025,113.57,113.43,6.25]
[1644315321846,17.13275549,113.57,113.44,13.2154]
[1644315322045,12.72775549,113.57,113.44,13.2154]
[1644315322246,12.72775549,113.57,113.53,0.65563316]
[1644315322446,10.62,113.57,113.44,13.4654]
[1644315323070,10.62,113.57,113.44,15.47881183]
[1644315323468,10.62,113.57,113.44,21.47881183]
[1644315323672,10.62,113.57,113.44,13.4654]
[1644315323867,21.05675549,113.57,113.44,13.2154]
[1644315324069,33.42406541,113.57,113.44,6.0]
[1644315324369,15.66040636,113.56,113.42,30.1651]
[1644315324569,10.62,113.55,113.42,30.1651]
[1644315324769,12.72775549,113.55,113.42,24.1651]
[1644315325273,13.2209,113.54,113.42,24.1651]
[1644315325470,10.62,113.53,113.42,24.1651]
[1644315325670,10.62,113.53,113.39,46.8668]
[1644315325870,17.13375549,113.53,113.39,46.8668]
[1644315326071,2.10775549,113.52,113.39,52.8668]
[1644315326273,10.62,113.51,113.39,52.8668]
[1644315326471,10.62,113.51,113.39,55.13021183]
[1644315326672,10.62,113.51,113.39,53.1168]
[1644315326877,10.62,113.51,113.39,68.35211183]
[1644315327078,10.62,113.51,113.39,66.3387]
[1644315327273,12.72775549,113.51,113.39,66.0887]
[1644315327674,12.72775549,113.51,113.39,60.0887]
[1644315327875,12.72775549,113.51,113.4,2.01341183]
[1644315328074,12.72775549,113.51,113.39,60.0887]
[1644315328274,10.62,113.51,113.39,60.0887]
[1644315328478,12.72775549,113.51,113.39,60.0887]
[1644315331483,10.62,113.51,113.39,60.0887]
[1644315331678,10.62,113.51,113.39,60.3387]
[1644315332779,10.62,113.51,113.4,2.01341183]
[1644315333182,10.62,113.51,113.4,2.26341183]
[1644315333784,17.6278,113.54,113.4,15.48371183]
[1644315333985,10.62,113.53,113.4,21.48371183]
[1644315335083,2.10775549,113.52,113.4,15.23371183]
[1644315335283,10.62,113.51,113.39,70.0769]
[1644315335486,4.407,113.5,113.35,152.6838]
[1644315335684,10.62,113.49,113.35,152.6838]
[1644315335884,4.408,113.48,113.35,158.6838]
[1644315336085,10.62,113.47,113.35,158.6838]
[1644315336283,10.62,113.47,113.35,152.6838]
[1644315336487,12.72775549,113.47,113.35,158.6838]
[1644315336684,12.72775549,113.47,113.35,158.9338]
[1644315336885,12.72775549,113.47,113.35,152.9338]
[1644315337286,2.10775549,113.46,113.35,152.9338]
[1644315337487,12.72775549,113.46,113.35,152.9338]
[1644315337686,12.72775549,113.46,113.35,158.9338]
[1644315337888,12.72775549,113.46,113.35,78.1744]
[1644315338088,12.72775549,113.46,113.35,0.25]
[1644315338287,10.62,113.46,113.34,13.4781]
[1644315338489,10.62,113.46,113.34,19.4781]
[1644315339091,10.62,113.46,113.34,21.49151183]
[1644315339488,12.72775549,113.46,113.34,19.4781]
[1644315339688,12.72775549,113.46,113.34,6.25]
[1644315339988,12.72775549,113.46,113.34,0.25]
[1644315340189,17.13675549,113.46,113.32,35.9207]
[1644315340389,40.44110658,113.46,113.32,22.6903]
[1644315340789,1.23125109,113.45,113.32,22.6903]
[1644315340990,10.62,113.44,113.32,22.6903]
[1644315341491,2.10775549,113.43,113.32,22.6903]
[1644315341696,10.62,113.42,113.32,22.6903]
[1644315342091,2.10775549,113.41,113.32,22.6903]
[1644315342292,24.68975549,113.41,113.32,22.6903]
[1644315343793,22.582,113.41,113.32,22.6903]
[1644315344697,10.62,113.41,113.32,22.6903]
[1644315344994,10.62,113.41,113.3,60.5069]
[1644315346700,10.62,113.41,113.3,60.7569]
[1644315347603,10.62,113.41,113.3,60.5069]
[1644315348004,23.8551,113.41,113.3,60.5069]
[1644315349000,23.8551,113.41,113.3,60.7569]
[1644315349203,23.8551,113.41,113.3,66.7569]
[1644315349402,23.8551,113.41,113.3,66.5069]
[1644315349601,23.8551,113.41,113.3,60.7569]
[1644315350001,23.8551,113.41,113.3,66.7569]
[1644315350502,23.8551,113.41,113.3,60.7569]
[1644315351101,23.8551,113.41,113.3,66.7569]
[1644315351502,23.8551,113.41,113.3,60.5069]
[1644315351703,33.77785549,113.41,113.28,172.6228]
[1644315351903,33.77785549,113.41,113.28,23.3875]
[1644315351904,0.30185102,113.4,113.28,23.3875]
[1644315352101,13.239,113.37,113.28,23.3875]
[1644315352302,10.62,113.36,113.28,23.3875]
[1644315353103,13.239,113.37,113.28,23.3875]
[1644315353503,10.62,113.36,113.28,23.3875]
[1644315354104,13.239,113.37,113.28,23.3875]
[1644315354304,10.62,113.38,113.28,23.3875]
[1644315354707,12.72775549,113.38,113.28,23.3875]
[1644315354905,10.62,113.38,113.28,23.3875]
[1644315355306,10.62,113.38,113.28,23.6375]
[1644315355506,23.8582,113.38,113.28,23.3875]
[1644315357805,2.10775549,113.37,113.25,13.2633]
[1644315358007,23.8599,113.36,113.25,0.024]
[1644315358208,0.32172477,113.34,113.25,0.024]
[1644315358406,10.62,113.33,113.25,0.024]
[1644315358606,10.62,113.33,113.24,4.41]
[1644315358808,10.62,113.33,113.24,0.024]
[1644315359508,10.62,113.33,113.21,0.024]
[1644315359509,12.72775549,113.33,113.21,0.024]
[1644315359710,13.2455,113.32,113.21,13.2685]
[1644315359909,23.8655,113.32,113.22,0.024]
[1644315360310,25.97325549,113.32,113.22,0.024]
[1644315360713,4.414,113.31,113.22,0.024]
[1644315360911,13.25,113.29,113.18,0.024]
[1644315361313,25.97775549,113.29,113.18,0.024]
[1644315364014,23.87,113.29,113.18,0.024]
[1644315365531,36.33775549,113.29,113.18,0.024]
[1644315366431,4.415,113.28,113.18,0.024]
[1644315366632,13.252,113.26,113.18,0.024]
[1644315366832,13.252,113.26,113.17,0.82272192]
[1644315367533,23.872,113.26,113.17,0.82272192]
[1644315369236,25.97975549,113.26,113.17,0.82272192]
[1644315369433,26.28506723,113.26,113.17,0.82272192]
[1644315369634,4.416,113.25,113.17,0.79872192]
[1644315369834,10.62,113.24,113.17,0.79872192]
[1644315370035,13.2568,113.23,113.17,0.79872192]
[1644315370238,23.8768,113.23,113.17,0.79872192]
[1644315370732,10.62,113.23,113.17,0.79872192]
[1644315372233,10.62,113.23,113.15,0.024]
[1644315372531,10.62,113.23,113.14,2.01338339]
[1644315372734,10.62,113.23,113.14,15.26598339]
[1644315373531,10.62,113.23,113.14,13.2526]
[1644315374733,13.2533,113.24,113.14,13.2526]
[1644315374934,46.6446,113.28,113.17,13.2495]
[1644315375434,13.2511,113.26,113.18,0.024]
[1644315375632,13.2511,113.26,113.17,13.5235]
[1644315376034,13.2511,113.26,113.17,13.2735]
[1644315377134,13.2511,113.26,113.17,15.28754958]
[1644315377535,13.2511,113.26,113.17,15.53754958]
[1644315377834,13.2511,113.26,113.17,15.28754958]
[1644315378435,13.2511,113.26,113.17,13.2735]
[1644315378936,13.2511,113.26,113.17,126.3735]
[1644315379137,13.2511,113.26,113.17,0.024]
[1644315379138,25.1511,113.26,113.17,0.024]
[1644315379338,25.1511,113.26,113.16,47.7302]
[1644315379739,12.73,113.25,113.16,47.7302]
[1644315379941,13.2543,113.23,113.16,47.7302]
[1644315381342,13.2543,113.23,113.14,0.024]
[1644315382043,13.2543,113.23,113.13,13.2778]
[1644315384449,13.2543,113.23,113.13,14.52171609]
[1644315384652,13.2543,113.23,113.13,16.78576567]
[1644315384851,25.9821,113.25,113.14,1.24391609]
[1644315385052,12.73,113.25,113.14,1.26791609]
[1644315385251,12.73,113.25,113.15,15.26644958]
[1644315385451,12.73,113.25,113.15,13.2764]
[1644315385851,12.73,113.25,113.15,14.52031609]
[1644315386051,12.73,113.25,113.15,13.2524]
[1644315386250,12.73,113.25,113.15,13.2764]
[1644315386851,13.2524,113.24,113.15,14.52031609]
[1644315387051,13.2524,113.24,113.15,1.24391609]
[1644315387652,13.2524,113.24,113.14,1.26791609]
[1644315387860,25.9824,113.24,113.14,1.26791609]
[1644315388654,25.9824,113.24,113.15,1.24391609]
[1644315388855,25.9824,113.24,113.14,1.26791609]
[1644315389454,28.09015549,113.24,113.14,1.24391609]
[1644315389654,28.09015549,113.24,113.13,0.024]
[1644315389655,32.50715549,113.24,113.13,1.26791609]
[1644315389857,32.50715549,113.24,113.14,0.024]
[1644315390156,28.09015549,113.24,113.14,0.024]
[1644315390556,25.9824,113.24,113.14,2.03804958]
[1644315390761,25.9824,113.24,113.14,3.28196567]
[1644315390954,25.9824,113.24,113.14,3.25796567]
[1644315391154,25.9824,113.24,113.15,1.24391609]
[1644315391355,30.3994,113.24,113.13,1.26791609]
[1644315391556,2.10775549,113.23,113.14,0.024]
[1644315391755,12.73,113.22,113.14,1.24391609]
[1644315391958,12.73,113.24,113.14,1.26791609]
[1644315392155,12.73,113.24,113.14,1.24391609]
[1644315392564,14.83775549,113.24,113.14,1.24391609]
[1644315392756,14.83775549,113.24,113.13,1.26791609]
[1644315392957,14.83775549,113.24,113.14,0.024]
[1644315393359,13.254,113.23,113.14,0.024]
[1644315393557,12.73,113.22,113.12,1.24391609]
[1644315393759,14.83775549,113.22,113.14,0.024]
[1644315393957,2.10775549,113.21,113.12,1.24391609]
[1644315394159,14.83775549,113.21,113.12,1.24391609]
[1644315394359,13.2595,113.2,113.12,1.24391609]
[1644315394760,12.73,113.19,113.11,0.024]
[1644315394959,12.73,113.19,113.11,1.24391609]
[1644315395161,12.73,113.19,113.1,1.24391609]
[1644315395360,13.2622,113.17,113.1,1.24391609]
[1644315395760,13.2622,113.17,113.11,1.24391609]
[1644315396860,13.2622,113.17,113.1,1.24391609]
[1644315397460,13.2622,113.17,113.11,1.24391609]
[1644315397661,13.2622,113.17,113.1,1.24391609]
[1644315397902,13.2622,113.17,113.11,1.24391609]
[1644315398061,13.2622,113.17,113.1,1.24391609]
[1644315400564,0.3046734,113.14,113.1,1.24391609]
[1644315400767,13.2667,113.13,113.08,1.24391609]
[1644315400965,13.2667,113.13,113.06,1.26791609]
[1644315401166,13.2667,113.13,113.07,6.50322]
[1644315401865,13.2667,113.13,113.05,1.24391609]
[1644315402866,13.2667,113.13,113.04,49.35095765]
[1644315403467,13.2667,113.13,113.04,55.85589765]
[1644315403968,13.2667,113.13,113.04,69.12189765]
[1644315404170,13.2667,113.13,113.04,69.09789765]
[1644315405394,13.2645,113.14,113.05,1.24391609]
[1644315405593,12.73,113.17,113.06,14.50711609]
[1644315405794,12.73,113.2,113.06,39.37335765]
[1644315406094,12.73,113.19,113.07,2.04314156]
[1644315406297,12.73,113.19,113.08,48.1772]
[1644315406499,12.73,113.19,113.08,50.19634156]
[1644315406695,13.2613,113.18,113.09,2.01914156]
[1644315406994,13.2613,113.18,113.09,2.04314156]
[1644315407795,13.2613,113.18,113.09,15.30344156]
[1644315408594,13.2613,113.18,113.09,13.2843]
[1644315408797,13.2613,113.18,113.09,0.024]
[1644315408995,13.2613,113.18,113.08,0.024]
[1644315408996,37.68105549,113.18,113.08,0.024]
[1644315409194,42.09905549,113.18,113.08,0.024]
[1644315409396,37.68105549,113.18,113.06,0.024]
[1644315409596,42.10105549,113.18,113.06,0.024]
[1644315409996,39.9933,113.18,113.06,0.024]
[1644315410897,39.9933,113.18,113.05,0.024]
[1644315411698,39.9933,113.18,113.05,2.04314156]
[1644315411898,39.9933,113.18,113.06,0.024]
[1644315412298,35.5733,113.18,113.05,0.024]
[1644315412499,4.42,113.17,113.05,0.024]
[1644315412701,13.2663,113.14,113.05,2.0481227]
[1644315412906,13.2663,113.14,113.06,0.024]
[1644315413100,13.2663,113.14,113.05,15.2892227]
[1644315413300,13.2663,113.14,113.05,16.53313879]
[1644315413601,13.2663,113.14,113.07,2.0241227]
[1644315413800,13.2663,113.14,113.05,3.26803879]
[1644315414500,13.2663,113.14,113.05,3.51803879]
[1644315414700,13.2663,113.14,113.06,13.2638]
[1644315415102,12.73,113.16,113.07,2.0241227]
[1644315415301,25.9929,113.16,113.07,2.0241227]
[1644315415502,13.2629,113.16,113.07,2.0241227]
[1644315415703,13.2629,113.16,113.07,2.0481227]
[1644315416101,13.2629,113.16,113.08,2.0241227]
[1644315416701,13.2629,113.16,113.07,0.024]
[1644315416702,13.2629,113.16,113.07,13.2866]
[1644315416902,13.2629,113.16,113.08,2.0241227]
[1644315417804,13.2604,113.18,113.08,15.5354227]
[1644315418004,1.23125109,113.24,113.08,48.21633879]
[1644315418205,13.96125109,113.26,113.1,1.24391609]
[1644315418405,1.23125109,113.26,113.12,1.24391609]
[1644315418604,13.96125109,113.28,113.12,15.35791609]
[1644315418803,13.96125109,113.28,113.13,14.7541227]
[1644315419014,13.96125109,113.28,113.13,15.99803879]
[1644315419203,13.96125109,113.28,113.14,2.0241227]
[1644315419405,13.2525,113.25,113.14,2.0241227]
[1644315419606,159.17,113.23,113.11,0.024]
[1644315419903,18.37925109,113.22,113.11,0.024]
[1644315420103,80.35424816,113.22,113.07,0.024]
[1644315420303,82.43070845,113.22,113.08,0.024]
[1644315420504,14.64309707,113.21,113.08,0.024]
[1644315420703,12.73,113.2,113.08,0.024]
[1644315420904,14.83775549,113.2,113.08,0.024]
[1644315421106,2.10775549,113.19,113.08,0.024]
[1644315421304,14.83775549,113.19,113.08,0.024]
[1644315422808,13.2627,113.17,113.08,0.024]
[1644315423021,12.73,113.16,113.07,1.24391609]
[1644315423210,14.83775549,113.16,113.07,0.024]
[1644315423410,14.83775549,113.16,113.06,6.50379]
[1644315423611,19.25775549,113.16,113.06,6.52779]
[1644315423808,17.15,113.16,113.06,6.52779]
[1644315424009,29.192,113.16,113.06,6.50379]
[1644315424213,13.2682,113.14,113.06,6.50379]
[1644315424411,12.73,113.13,113.06,6.50379]
[1644315425011,21.031,113.13,113.05,0.024]
[1644315425212,21.031,113.13,113.03,1.26791609]
[1644315425512,13.271,113.11,113.03,1.26791609]
[1644315425712,13.271,113.11,113.03,1.24391609]
[1644315425911,13.271,113.11,113.02,1.71014469]
[1644315426212,13.271,113.11,113.02,6.4662286]
[1644315426411,13.271,113.11,113.02,0.4662286]
[1644315426412,26.001,113.11,113.02,0.4662286]
[1644315426612,37.764,113.11,113.02,0.4662286]
[1644315427217,37.764,113.11,113.0,2.89573628]
[1644315427218,13.59573251,113.06,113.0,2.89573628]
[1644315427413,12.73,113.05,112.93,26.23822144]
[1644315427613,0.32153326,113.02,112.93,26.23822144]
[1644315427815,12.73,113.01,112.93,6.51128]
[1644315428217,13.2847,113.0,112.93,6.51128]
[1644315428414,12.73,112.99,112.93,6.51128]
[1644315428616,71.01855549,112.99,112.93,6.51128]
[1644315429015,2.10775549,112.98,112.93,6.51128]
[1644315429215,12.73,112.97,112.93,6.51128]
[1644315429419,13.2887,112.96,112.93,6.51128]
[1644315429618,33.9967,112.96,112.93,6.51128]
[1644315430416,33.9967,112.96,112.93,8e-05]
[1644315430617,33.9967,112.96,112.85,0.1]
[1644315431219,33.9967,112.96,112.86,2.0241227]
[1644315431417,33.9967,112.96,112.85,0.1]
[1644315431817,36.10445549,112.96,112.85,0.1]
[1644315432218,21.2667,112.96,112.85,2.1241227]
[1644315432418,23.37445549,112.96,112.85,2.1241227]
[1644315432618,23.37445549,112.96,112.85,8.1241227]
[1644315432824,13.2887,112.96,112.85,8.1241227]
[1644315433719,2.10775549,112.95,112.85,6.1]
[1644315434020,13.2924,112.93,112.85,6.1]
[1644315434223,13.2924,112.93,112.85,0.1]
[1644315434419,13.2924,112.93,112.86,2.0241227]
[1644315434626,13.2924,112.93,112.85,6.1]
[1644315434824,21.5284,112.93,112.85,6.1]
[1644315435019,32.1684,112.93,112.85,0.1]
[1644315435219,32.1684,112.93,112.85,6.1]
[1644315435419,23.9324,112.93,112.85,6.1]
[1644315435620,4.429,112.99,112.85,2.1241227]
[1644315435821,4.429,112.99,112.85,19.5661227]
[1644315436021,10.64,113.01,112.86,4.426]
[1644315436221,13.1362,113.11,112.87,60.0169]
[1644315436519,13.1362,113.11,112.88,4.425]
[1644315436520,21.56388,113.1,112.88,4.425]
[1644315436719,21.56388,113.1,112.89,10.64]
[1644315436920,21.56388,113.1,112.9,51.536]
[1644315437122,21.56388,113.1,112.91,35.377]
[1644315437323,17.13888,113.1,112.92,4.424]
[1644315437524,4.424,113.09,112.93,34.8941]
[1644315437724,6.49888,113.08,112.93,56.44924883]
[1644315437925,6.49888,113.08,112.94,2.02914883]
[1644315438123,6.49888,113.08,112.94,16.99614883]
[1644315438323,6.49888,113.08,112.93,41.1441]
[1644315438324,6.49888,113.08,112.93,24.2541]
[1644315438522,15.064,113.07,112.93,24.2541]
[1644315438922,17.17175549,113.07,112.93,24.2541]
[1644315439145,15.064,113.07,112.93,24.2541]
[1644315439322,13.2777,113.06,112.94,2.02429587]
[1644315439522,6.49888,113.05,112.94,2.02429587]
[1644315439725,6.49888,113.05,112.94,2.27429587]
[1644315440125,6.49888,113.05,112.94,2.02429587]
[1644315440325,6.49888,113.05,112.95,2.02429587]
[1644315440526,6.49888,113.05,112.95,21.58229587]
[1644315440726,6.49888,113.05,112.95,27.83229587]
[1644315440925,6.49888,113.05,112.96,2.02429587]
[1644315441127,6.49888,113.05,112.96,16.64]
[1644315441326,6.49888,113.05,112.96,16.89]
[1644315441529,6.49888,113.05,112.96,18.91429587]
[1644315441725,6.49888,113.05,112.96,32.18689587]
[1644315442131,6.49888,113.05,112.96,40.07489587]
[1644315442727,10.64,113.12,112.97,33.0]
[1644315442926,17.6912,113.14,112.99,13.2686]
[1644315443131,10.64,113.14,113.0,23.2344]
[1644315443327,4.422,113.15,113.01,10.64]
[1644315443528,4.421,113.17,113.01,33.9571]
[1644315443726,4.421,113.17,113.02,24.1977]
[1644315443928,12.74775549,113.18,113.03,10.664]
[1644315444129,12.74775549,113.18,113.04,0.024]
[1644315444736,4.42,113.17,113.05,2.01951889]
[1644315444927,23.9035,113.18,113.04,10.714]
[1644315445134,7.10775549,113.2,113.05,4.42]
[1644315445135,10.64,113.19,113.05,4.42]
[1644315445330,23.10618303,113.19,113.05,46.1134]
[1644315445529,6.49888,113.18,113.05,46.1134]
[1644315445729,33.68679767,113.18,113.05,46.1134]
[1644315445931,13.2647,113.17,113.05,46.1134]
[1644315446130,10.91888,113.16,113.05,46.1134]
[1644315446541,21.55888,113.16,113.05,46.1134]
[1644315446931,21.55888,113.16,113.05,54.13291889]
[1644315447131,21.55888,113.16,113.05,46.1134]
[1644315447330,17.13888,113.16,113.05,46.1134]
[1644315447935,30.40498,113.16,113.05,46.1134]
[1644315448734,2.10775549,113.15,113.04,0.024]
[1644315448934,30.40768,113.14,113.04,0.024]
[1644315449134,34.82868,113.14,113.04,0.024]
[1644315449536,38.31735022,113.14,113.03,0.024]
[1644315449937,38.31735022,113.14,113.03,2.04351889]
[1644315449938,10.91988,113.14,113.03,2.04351889]
[1644315450137,6.49888,113.14,113.04,0.024]
[1644315450342,8.60663549,113.14,113.04,0.024]
[1644315450637,15.061,113.13,113.03,0.024]
[1644315450839,6.49888,113.12,113.02,0.024]
[1644315451136,19.24663549,113.12,113.02,0.024]
[1644315451338,2.10775549,113.11,113.02,0.024]
[1644315451538,6.49888,113.1,113.02,0.024]
[1644315452236,6.49888,113.1,113.03,2.01951889]
[1644315452638,6.49888,113.1,113.03,8.26951889]
[1644315452838,6.49888,113.1,113.02,0.024]
[1644315453241,17.90988,113.1,113.02,0.024]
[1644315453437,2.10775549,113.09,113.02,0.024]
[1644315453639,6.49888,113.08,113.0,24.2343]
[1644315454039,6.49888,113.08,113.01,2.01951889]
[1644315454256,6.49888,113.08,113.0,24.2343]
[1644315455458,2.10775549,113.08,113.0,24.2343]
[1644315455660,12.74775549,113.08,113.0,24.2343]
[1644315455861,12.74775549,113.08,113.0,0.024]
[1644315456058,26.02275549,113.08,113.0,0.024]
[1644315457259,23.915,113.08,113.0,0.024]
[1644315457659,26.02275549,113.08,113.0,0.024]
[1644315458059,23.915,113.08,113.0,0.024]
[1644315458462,2.10775549,113.07,112.96,0.024]
[1644315458660,13.277,113.05,112.96,0.024]
[1644315461665,15.38475549,113.05,112.96,0.024]
[1644315462562,15.38475549,113.05,112.94,0.024]
[1644315462963,13.277,113.05,112.94,0.024]
[1644315467268,13.277,113.05,112.94,13.2995]
[1644315467468,13.277,113.05,112.95,0.024]
[1644315467873,13.2745,113.07,112.95,2.04351889]
[1644315468074,13.2745,113.07,112.96,0.024]
[1644315468669,13.2745,113.07,112.94,0.024]
[1644315468870,13.2745,113.07,112.95,13.2742]
[1644315469071,13.2745,113.07,112.96,0.024]
[1644315469874,13.2745,113.07,112.96,24.3634]
[1644315470075,13.2745,113.07,112.96,34.9794]
[1644315470475,13.2745,113.07,112.96,35.0034]
[1644315471978,13.2719,113.09,112.96,35.0034]
[1644315472179,13.2719,113.09,112.97,24.5314]
[1644315472379,2.10775549,113.08,112.97,24.5314]
[1644315472578,2.10775549,113.08,112.98,0.024]
[1644315473179,15.38065549,113.08,112.98,0.024]
[1644315474180,13.2729,113.08,112.98,0.024]
[1644315476387,2.10775549,113.07,112.97,47.9437]
[1644315476584,15.38165549,113.07,112.97,24.0314]
[1644315476985,2.10775549,113.06,112.97,24.0314]
[1644315478788,13.278,113.04,112.97,24.0314]
[1644315479593,13.278,113.04,112.95,24.2768]
[1644315486703,13.278,113.04,112.95,37.5527]
[1644315487298,13.2746,113.06,112.95,37.5527]
[1644315487498,13.2746,113.06,112.95,57.8937]
[1644315489003,15.38235549,113.06,112.95,57.8937]
[1644315489402,13.2746,113.06,112.95,57.8937]
[1644315489603,2.10775549,113.08,112.95,64.1437]
[1644315489802,13.5191,113.09,112.99,13.2693]
[1644315490005,13.5191,113.09,112.99,22.9113]
[1644315490203,13.5191,113.09,113.0,10.64]
[1644315491105,26.7891,113.09,113.0,23.9097]
[1644315491704,28.89685549,113.09,113.0,23.9097]
[1644315491904,28.89685549,113.09,113.0,10.64]
[1644315492204,28.89685549,113.09,112.99,6.0]
[1644315492405,28.89685549,113.09,112.97,0.024]
[1644315492806,28.89685549,113.09,112.98,13.2722]
[1644315493204,28.89685549,113.09,112.97,0.024]
[1644315493705,41.16285549,113.09,112.97,0.024]
[1644315495425,28.89685549,113.09,112.97,0.024]